[Event "Titled Tuesday Blitz February 07 Early 2023"]
[White "Bachmann, Axel"]
[Black "Zierk, Steven"]
[WhiteFideId "3700488"]
[BlackFideId "2034255"]
[WhiteElo "2604"]
[BlackElo "2488"]
[Result "0-1"]
[Round "06"]
[TimeControl "180+2"]
[Date "2023.02.07"]
[WhiteClock "0:00:02"]
[BlackClock "0:00:19"]

1. e4 {[%clk 0:02:49]}  e6 {[%clk 0:02:59]} 2. Qe2 {[%clk 0:02:47]}  c5 {[%clk 0:02:58]} 3. Nf3 {[%clk 0:02:42]}  Nc6 {[%clk 0:02:58]} 4. g3 {[%clk 0:02:43]}  g6 {[%clk 0:02:58]} 5. Bg2 {[%clk 0:02:30]}  Bg7 {[%clk 0:02:58]} 6. c3 {[%clk 0:02:31]}  Nge7 {[%clk 0:02:56]} 7. d3 {[%clk 0:02:31]}  O-O {[%clk 0:02:54]} 8. O-O {[%clk 0:02:25]}  e5 {[%clk 0:02:53]} 9. a3 {[%clk 0:02:23]}  d6 {[%clk 0:02:51]} 10. b4 {[%clk 0:02:22]}  Be6 {[%clk 0:02:38]} 11. Nbd2 {[%clk 0:01:47]}  h6 {[%clk 0:02:34]} 12. b5 {[%clk 0:01:47]}  Na5 {[%clk 0:02:28]} 13. c4 {[%clk 0:01:46]}  f5 {[%clk 0:02:24]} 14. Bb2 {[%clk 0:01:47]}  f4 {[%clk 0:02:22]} 15. Bc3 {[%clk 0:01:47]}  g5 {[%clk 0:02:21]} 16. h3 {[%clk 0:01:44]}  Ng6 {[%clk 0:02:09]} 17. Nh2 {[%clk 0:01:38]}  b6 {[%clk 0:02:07]} 18. Bxa5 {[%clk 0:01:33]}  bxa5 {[%clk 0:02:08]} 19. Qh5 {[%clk 0:01:27]}  Kh7 {[%clk 0:02:01]} 20. Nb1 {[%clk 0:01:21]}  Bf7 {[%clk 0:01:47]} 21. Qe2 {[%clk 0:01:19]}  Ne7 {[%clk 0:01:44]} 22. Bf3 {[%clk 0:01:14]}  Qe8 {[%clk 0:01:43]} 23. Nc3 {[%clk 0:01:13]}  h5 {[%clk 0:01:41]} 24. Kg2 {[%clk 0:01:10]}  Bg6 {[%clk 0:01:37]} 25. Rh1 {[%clk 0:00:59]}  Rf6 {[%clk 0:01:32]} 26. g4 {[%clk 0:00:57]}  Bf7 {[%clk 0:01:07]} 27. gxh5 {[%clk 0:00:56]}  Rh6 {[%clk 0:01:07]} 28. Rag1 {[%clk 0:00:56]}  Bxh5 {[%clk 0:01:04]} 29. Bxh5 {[%clk 0:00:55]}  Rxh5 {[%clk 0:01:03]} 30. Kf1 {[%clk 0:00:53]}  Rxh3 {[%clk 0:00:57]} 31. Qg4 {[%clk 0:00:30]}  Qh5 {[%clk 0:00:50]} 32. Qxg5 {[%clk 0:00:22]}  Qxg5 {[%clk 0:00:48]} 33. Rxg5 {[%clk 0:00:23]}  Bh6 {[%clk 0:00:46]} 34. Rgg1 {[%clk 0:00:21]}  Rxd3 {[%clk 0:00:28]} 35. Ng4 {[%clk 0:00:21]}  Ng8 {[%clk 0:00:28]} 36. Ne2 {[%clk 0:00:01]}  f3 {[%clk 0:00:24]} 37. Ke1 {[%clk 0:00:02]}  Rxa3 {[%clk 0:00:19]} 38. Ng3 {[%clk 0:00:02]}  Ra1# {[%clk 0:00:19]} 0-1


[Site "https://www.chess.com"]

[Event "Titled Tuesday Blitz February 07 Early 2023"]
[White "Bruzon Batista, Lazaro"]
[Black "Rakhmanov, Aleksandr"]
[WhiteFideId "3503739"]
[BlackFideId "4173708"]
[WhiteElo "2611"]
[BlackElo "2632"]
[Result "1/2-1/2"]
[Round "06"]
[TimeControl "180+2"]
[Date "2023.02.07"]
[WhiteClock "0:01:47"]
[BlackClock "0:00:59"]

1. e4 {[%clk 0:03:00]}  c5 {[%clk 0:02:58]} 2. Nf3 {[%clk 0:03:00]}  Nf6 {[%clk 0:02:59]} 3. Nc3 {[%clk 0:02:57]}  d5 {[%clk 0:02:58]} 4. e5 {[%clk 0:02:57]}  Nfd7 {[%clk 0:02:58]} 5. Nxd5 {[%clk 0:02:41]}  Nxe5 {[%clk 0:02:56]} 6. Nc3 {[%clk 0:02:40]}  Nxf3+ {[%clk 0:02:54]} 7. Qxf3 {[%clk 0:02:40]}  Nc6 {[%clk 0:02:55]} 8. Bb5 {[%clk 0:02:39]}  Bd7 {[%clk 0:02:55]} 9. O-O {[%clk 0:02:38]}  e6 {[%clk 0:02:55]} 10. Re1 {[%clk 0:02:35]}  a6 {[%clk 0:02:37]} 11. Bxc6 {[%clk 0:02:34]}  Bxc6 {[%clk 0:02:38]} 12. Qg3 {[%clk 0:02:34]}  h5 {[%clk 0:02:32]} 13. h3 {[%clk 0:02:33]}  h4 {[%clk 0:02:31]} 14. Qe5 {[%clk 0:02:18]}  Qd6 {[%clk 0:01:47]} 15. d3 {[%clk 0:02:14]}  Qxe5 {[%clk 0:01:47]} 16. Rxe5 {[%clk 0:02:14]}  Bd6 {[%clk 0:01:47]} 17. Re1 {[%clk 0:02:14]}  O-O-O {[%clk 0:01:22]} 18. Ne4 {[%clk 0:02:12]}  Be7 {[%clk 0:01:22]} 19. f3 {[%clk 0:02:03]}  b6 {[%clk 0:01:16]} 20. b3 {[%clk 0:02:00]}  Kb7 {[%clk 0:01:11]} 21. Bb2 {[%clk 0:01:56]}  f6 {[%clk 0:01:09]} 22. Nf2 {[%clk 0:01:49]}  Bd7 {[%clk 0:00:59]} 23. a4 {[%clk 0:01:48]}  a5 {[%clk 0:00:59]} 24. Ne4 {[%clk 0:01:47]} 1/2-1/2


[Site "https://www.chess.com"]

[Event "Titled Tuesday Blitz February 07 Early 2023"]
[White "Kamsky, Gata"]
[Black "Senlle Caride, Miguel"]
[WhiteFideId "2000024"]
[BlackFideId "2282500"]
[WhiteElo "2665"]
[BlackElo "2343"]
[Result "1-0"]
[Round "06"]
[TimeControl "180+2"]
[Date "2023.02.07"]
[WhiteClock "0:00:05"]
[BlackClock "0:00:01"]

1. d4 {[%clk 0:03:00]}  Nf6 {[%clk 0:02:58]} 2. Bf4 {[%clk 0:02:55]}  e6 {[%clk 0:02:57]} 3. e3 {[%clk 0:02:54]}  d5 {[%clk 0:02:57]} 4. Nf3 {[%clk 0:02:54]}  Bd6 {[%clk 0:02:57]} 5. Bxd6 {[%clk 0:02:53]}  Qxd6 {[%clk 0:02:57]} 6. c4 {[%clk 0:02:53]}  c5 {[%clk 0:02:39]} 7. Nc3 {[%clk 0:02:50]}  Nc6 {[%clk 0:02:35]} 8. cxd5 {[%clk 0:02:46]}  exd5 {[%clk 0:02:28]} 9. Nb5 {[%clk 0:02:44]}  Qe7 {[%clk 0:02:24]} 10. dxc5 {[%clk 0:02:44]}  O-O {[%clk 0:02:22]} 11. Rc1 {[%clk 0:02:41]}  Ne4 {[%clk 0:02:14]} 12. Be2 {[%clk 0:02:25]}  Be6 {[%clk 0:01:14]} 13. O-O {[%clk 0:02:16]}  Nxc5 {[%clk 0:01:11]} 14. Nbd4 {[%clk 0:02:12]}  Nxd4 {[%clk 0:00:56]} 15. Nxd4 {[%clk 0:02:09]}  Rac8 {[%clk 0:00:36]} 16. Bf3 {[%clk 0:02:06]}  Ne4 {[%clk 0:00:25]} 17. Qd3 {[%clk 0:01:39]}  Rxc1 {[%clk 0:00:20]} 18. Rxc1 {[%clk 0:01:37]}  Rc8 {[%clk 0:00:21]} 19. Rxc8+ {[%clk 0:01:27]}  Bxc8 {[%clk 0:00:22]} 20. Qb5 {[%clk 0:01:22]}  Qd7 {[%clk 0:00:16]} 21. Qd3 {[%clk 0:00:58]}  Nf6 {[%clk 0:00:14]} 22. Ne2 {[%clk 0:00:55]}  Qc7 {[%clk 0:00:08]} 23. Nc3 {[%clk 0:00:55]}  Be6 {[%clk 0:00:08]} 24. Qd4 {[%clk 0:00:55]}  Qa5 {[%clk 0:00:06]} 25. g4 {[%clk 0:00:51]}  h6 {[%clk 0:00:06]} 26. h4 {[%clk 0:00:50]}  Qd8 {[%clk 0:00:04]} 27. Kg2 {[%clk 0:00:42]}  Qe7 {[%clk 0:00:03]} 28. Qe5 {[%clk 0:00:32]}  Nd7 {[%clk 0:00:02]} 29. Qg3 {[%clk 0:00:22]}  Nb6 {[%clk 0:00:02]} 30. g5 {[%clk 0:00:20]}  hxg5 {[%clk 0:00:02]} 31. hxg5 {[%clk 0:00:18]}  Nc4 {[%clk 0:00:03]} 32. Nxd5 {[%clk 0:00:15]}  Qc5 {[%clk 0:00:02]} 33. Be4 {[%clk 0:00:12]}  Nd6 {[%clk 0:00:01]} 34. Qe5 {[%clk 0:00:05]} 1-0


[Site "https://www.chess.com"]

[Event "Titled Tuesday Blitz February 07 Early 2023"]
[White "Wagh Suyog"]
[Black "Yuan, Qingyu"]
[WhiteFideId "25071688"]
[BlackFideId "8609772"]
[WhiteElo "2313"]
[BlackElo "2373"]
[Result "0-1"]
[Round "06"]
[TimeControl "180+2"]
[Date "2023.02.07"]
[WhiteClock "0:00:04"]
[BlackClock "0:00:14"]

1. d4 {[%clk 0:03:00]}  d5 {[%clk 0:03:00]} 2. c4 {[%clk 0:03:01]}  e6 {[%clk 0:03:00]} 3. Nf3 {[%clk 0:03:01]}  Nf6 {[%clk 0:03:00]} 4. Nc3 {[%clk 0:03:01]}  Be7 {[%clk 0:03:00]} 5. cxd5 {[%clk 0:03:01]}  exd5 {[%clk 0:03:00]} 6. Bg5 {[%clk 0:03:01]}  c6 {[%clk 0:03:00]} 7. e3 {[%clk 0:03:02]}  Bf5 {[%clk 0:02:57]} 8. Bd3 {[%clk 0:03:01]}  Bxd3 {[%clk 0:02:58]} 9. Qxd3 {[%clk 0:03:02]}  Nbd7 {[%clk 0:02:58]} 10. O-O {[%clk 0:03:02]}  O-O {[%clk 0:02:58]} 11. Rab1 {[%clk 0:03:03]}  a5 {[%clk 0:02:56]} 12. a3 {[%clk 0:03:03]}  Ne4 {[%clk 0:02:56]} 13. Bf4 {[%clk 0:03:00]}  Nd6 {[%clk 0:02:29]} 14. Rfc1 {[%clk 0:02:58]}  Nb6 {[%clk 0:02:13]} 15. a4 {[%clk 0:02:48]}  Re8 {[%clk 0:02:03]} 16. b3 {[%clk 0:02:44]}  Bf8 {[%clk 0:02:00]} 17. Nd2 {[%clk 0:02:34]}  Qd7 {[%clk 0:01:54]} 18. Re1 {[%clk 0:02:31]}  Re6 {[%clk 0:01:51]} 19. Bg3 {[%clk 0:02:26]}  Rae8 {[%clk 0:01:49]} 20. Ne2 {[%clk 0:02:21]}  Ne4 {[%clk 0:01:46]} 21. Nxe4 {[%clk 0:02:18]}  Rxe4 {[%clk 0:01:36]} 22. Rec1 {[%clk 0:02:12]}  h5 {[%clk 0:01:29]} 23. Nc3 {[%clk 0:02:00]}  Rg4 {[%clk 0:01:24]} 24. f3 {[%clk 0:01:56]}  Rg6 {[%clk 0:01:20]} 25. Kh1 {[%clk 0:01:54]}  Bb4 {[%clk 0:01:17]} 26. Na2 {[%clk 0:01:52]}  Bf8 {[%clk 0:00:59]} 27. Re1 {[%clk 0:01:50]}  Rge6 {[%clk 0:00:44]} 28. Rbd1 {[%clk 0:01:50]}  g6 {[%clk 0:00:42]} 29. Bf2 {[%clk 0:01:46]}  Nc8 {[%clk 0:00:42]} 30. Qc3 {[%clk 0:01:39]}  Qd8 {[%clk 0:00:42]} 31. Re2 {[%clk 0:01:37]}  Nd6 {[%clk 0:00:37]} 32. Nc1 {[%clk 0:01:36]}  Nf5 {[%clk 0:00:37]} 33. Qe1 {[%clk 0:01:23]}  Bb4 {[%clk 0:00:36]} 34. Qg1 {[%clk 0:01:23]}  Qg5 {[%clk 0:00:36]} 35. Rd3 {[%clk 0:01:10]}  h4 {[%clk 0:00:36]} 36. Na2 {[%clk 0:01:04]}  Bd6 {[%clk 0:00:28]} 37. Qe1 {[%clk 0:01:00]}  Ng3+ {[%clk 0:00:22]} 38. Bxg3 {[%clk 0:01:00]}  Bxg3 {[%clk 0:00:20]} 39. Qg1 {[%clk 0:00:44]}  Qh6 {[%clk 0:00:16]} 40. Nc3 {[%clk 0:00:42]}  Bf4 {[%clk 0:00:15]} 41. Nd1 {[%clk 0:00:42]}  Bc7 {[%clk 0:00:15]} 42. Qe1 {[%clk 0:00:41]}  Qg5 {[%clk 0:00:15]} 43. b4 {[%clk 0:00:33]}  h3 {[%clk 0:00:14]} 44. g3 {[%clk 0:00:31]}  Qf5 {[%clk 0:00:15]} 45. e4 {[%clk 0:00:25]}  dxe4 {[%clk 0:00:15]} 46. fxe4 {[%clk 0:00:20]}  Rxe4 {[%clk 0:00:15]} 47. Rde3 {[%clk 0:00:09]}  Rxe3 {[%clk 0:00:16]} 48. Nxe3 {[%clk 0:00:09]}  Qf3+ {[%clk 0:00:14]} 49. Kg1 {[%clk 0:00:09]}  axb4 {[%clk 0:00:14]} 50. a5 {[%clk 0:00:05]}  Bxa5 {[%clk 0:00:14]} 51. d5 {[%clk 0:00:05]}  Bb6 {[%clk 0:00:14]} 52. dxc6 {[%clk 0:00:04]}  Rxe3 {[%clk 0:00:14]} 0-1


[Site "https://www.chess.com"]

[Event "Titled Tuesday Blitz February 07 Early 2023"]
[White "Tsydypov, Zhamsaran"]
[Black "Pulpan, Jakub"]
[WhiteFideId "4108566"]
[BlackFideId "302759"]
[WhiteElo "2518"]
[BlackElo "2427"]
[Result "1-0"]
[Round "06"]
[TimeControl "180+2"]
[Date "2023.02.07"]
[WhiteClock "0:02:00"]
[BlackClock "0:00:13"]

1. Nf3 {[%clk 0:03:00]}  d5 {[%clk 0:02:59]} 2. g3 {[%clk 0:03:00]}  g6 {[%clk 0:03:00]} 3. Bg2 {[%clk 0:03:01]}  Bg7 {[%clk 0:03:00]} 4. O-O {[%clk 0:03:02]}  e5 {[%clk 0:03:00]} 5. d3 {[%clk 0:03:01]}  Ne7 {[%clk 0:03:01]} 6. Nbd2 {[%clk 0:03:02]}  Nbc6 {[%clk 0:03:01]} 7. e4 {[%clk 0:03:03]}  O-O {[%clk 0:03:02]} 8. a3 {[%clk 0:03:03]}  a5 {[%clk 0:03:02]} 9. Rb1 {[%clk 0:03:03]}  h6 {[%clk 0:02:48]} 10. b4 {[%clk 0:03:03]}  axb4 {[%clk 0:02:49]} 11. axb4 {[%clk 0:03:04]}  dxe4 {[%clk 0:02:50]} 12. Nxe4 {[%clk 0:03:04]}  Nf5 {[%clk 0:02:46]} 13. b5 {[%clk 0:03:04]}  Ncd4 {[%clk 0:02:47]} 14. Nfd2 {[%clk 0:03:03]}  Nd6 {[%clk 0:02:31]} 15. c3 {[%clk 0:03:02]}  N4xb5 {[%clk 0:02:28]} 16. c4 {[%clk 0:02:59]}  Nxe4 {[%clk 0:02:25]} 17. Nxe4 {[%clk 0:02:59]}  Nd4 {[%clk 0:02:04]} 18. Nc5 {[%clk 0:02:59]}  Ra2 {[%clk 0:02:02]} 19. Be3 {[%clk 0:02:59]}  Ne2+ {[%clk 0:02:00]} 20. Kh1 {[%clk 0:02:59]}  Nc3 {[%clk 0:02:01]} 21. Qb3 {[%clk 0:02:59]}  Nxb1 {[%clk 0:01:50]} 22. Qxa2 {[%clk 0:02:59]}  b6 {[%clk 0:01:51]} 23. Qxb1 {[%clk 0:02:58]}  bxc5 {[%clk 0:01:51]} 24. Bxc5 {[%clk 0:02:58]}  Re8 {[%clk 0:01:51]} 25. Qb5 {[%clk 0:02:44]}  Bd7 {[%clk 0:01:44]} 26. Qb3 {[%clk 0:02:42]}  Bf5 {[%clk 0:01:39]} 27. Rd1 {[%clk 0:02:41]}  Bg4 {[%clk 0:01:37]} 28. Rd2 {[%clk 0:02:39]}  e4 {[%clk 0:01:34]} 29. h3 {[%clk 0:02:34]}  Bf3 {[%clk 0:01:29]} 30. d4 {[%clk 0:02:34]}  Qg5 {[%clk 0:01:13]} 31. Qe3 {[%clk 0:02:31]}  Qxe3 {[%clk 0:00:43]} 32. fxe3 {[%clk 0:02:30]}  Bxg2+ {[%clk 0:00:42]} 33. Kxg2 {[%clk 0:02:30]}  Rb8 {[%clk 0:00:43]} 34. Ra2 {[%clk 0:02:27]}  Bf8 {[%clk 0:00:41]} 35. Bxf8 {[%clk 0:02:27]}  Kxf8 {[%clk 0:00:42]} 36. c5 {[%clk 0:02:24]}  Ke7 {[%clk 0:00:39]} 37. Ra7 {[%clk 0:02:22]}  Kd7 {[%clk 0:00:39]} 38. g4 {[%clk 0:02:18]}  Rb2+ {[%clk 0:00:34]} 39. Kg3 {[%clk 0:02:19]}  g5 {[%clk 0:00:34]} 40. Ra6 {[%clk 0:02:07]}  Re2 {[%clk 0:00:33]} 41. Ra3 {[%clk 0:02:06]}  Ke6 {[%clk 0:00:28]} 42. h4 {[%clk 0:02:03]}  Kd5 {[%clk 0:00:28]} 43. h5 {[%clk 0:02:04]}  c6 {[%clk 0:00:28]} 44. Rc3 {[%clk 0:02:02]}  f6 {[%clk 0:00:26]} 45. Ra3 {[%clk 0:02:02]}  Kc4 {[%clk 0:00:25]} 46. Ra4+ {[%clk 0:01:59]}  Kb5 {[%clk 0:00:22]} 47. Ra3 {[%clk 0:01:59]}  Kb4 {[%clk 0:00:22]} 48. Ra6 {[%clk 0:02:00]}  Rxe3+ {[%clk 0:00:22]} 49. Kf2 {[%clk 0:02:00]}  Rf3+ {[%clk 0:00:20]} 50. Ke2 {[%clk 0:02:01]}  Kc4 {[%clk 0:00:21]} 51. Rxc6 {[%clk 0:02:00]}  Kxd4 {[%clk 0:00:21]} 52. Re6 {[%clk 0:02:00]}  Re3+ {[%clk 0:00:18]} 53. Kf2 {[%clk 0:02:00]}  Rf3+ {[%clk 0:00:13]} 54. Ke2 {[%clk 0:02:00]} 1-0


[Site "https://www.chess.com"]

[Event "Titled Tuesday Blitz February 07 Early 2023"]
[White "Madaminov, Mukhiddin"]
[Black "Zemlyanskii, Ivan"]
[WhiteFideId "14210703"]
[BlackFideId "24249971"]
[WhiteElo "2422"]
[BlackElo "2300"]
[Result "0-1"]
[Round "06"]
[TimeControl "180+2"]
[Date "2023.02.07"]
[WhiteClock "0:00:01"]
[BlackClock "0:00:11"]

1. d4 {[%clk 0:03:00]}  Nc6 {[%clk 0:02:55]} 2. Nf3 {[%clk 0:02:57]}  d6 {[%clk 0:02:51]} 3. e4 {[%clk 0:02:55]}  Nf6 {[%clk 0:02:51]} 4. Nc3 {[%clk 0:02:52]}  e5 {[%clk 0:02:48]} 5. Bb5 {[%clk 0:02:42]}  Bd7 {[%clk 0:02:42]} 6. O-O {[%clk 0:02:40]}  exd4 {[%clk 0:02:38]} 7. Nxd4 {[%clk 0:02:38]}  Be7 {[%clk 0:02:33]} 8. Bxc6 {[%clk 0:02:29]}  bxc6 {[%clk 0:02:33]} 9. Qf3 {[%clk 0:02:30]}  c5 {[%clk 0:02:32]} 10. Nf5 {[%clk 0:02:30]}  Bxf5 {[%clk 0:02:31]} 11. Qxf5 {[%clk 0:02:25]}  O-O {[%clk 0:02:29]} 12. b3 {[%clk 0:02:26]}  Nd7 {[%clk 0:02:25]} 13. Nd5 {[%clk 0:02:25]}  Bf6 {[%clk 0:02:17]} 14. Rb1 {[%clk 0:02:06]}  Re8 {[%clk 0:02:07]} 15. Rd1 {[%clk 0:02:05]}  Nb6 {[%clk 0:02:01]} 16. Nxf6+ {[%clk 0:01:59]}  Qxf6 {[%clk 0:01:57]} 17. Qxf6 {[%clk 0:01:59]}  gxf6 {[%clk 0:01:58]} 18. f3 {[%clk 0:02:00]}  Re6 {[%clk 0:01:56]} 19. Kf2 {[%clk 0:01:58]}  Rae8 {[%clk 0:01:56]} 20. g4 {[%clk 0:01:58]}  d5 {[%clk 0:01:51]} 21. Be3 {[%clk 0:01:35]}  dxe4 {[%clk 0:01:47]} 22. f4 {[%clk 0:01:36]}  c4 {[%clk 0:01:38]} 23. Rd2 {[%clk 0:01:23]}  c6 {[%clk 0:01:12]} 24. bxc4 {[%clk 0:01:11]}  Nxc4 {[%clk 0:01:09]} 25. Rd7 {[%clk 0:01:11]}  R6e7 {[%clk 0:01:04]} 26. Rxe7 {[%clk 0:00:51]}  Rxe7 {[%clk 0:01:05]} 27. Rb8+ {[%clk 0:00:51]}  Kg7 {[%clk 0:01:04]} 28. Bc5 {[%clk 0:00:52]}  e3+ {[%clk 0:00:54]} 29. Ke1 {[%clk 0:00:39]}  Re4 {[%clk 0:00:53]} 30. f5 {[%clk 0:00:33]}  h6 {[%clk 0:00:50]} 31. h3 {[%clk 0:00:29]}  e2 {[%clk 0:00:46]} 32. Rb4 {[%clk 0:00:18]}  a5 {[%clk 0:00:38]} 33. Ra4 {[%clk 0:00:19]}  h5 {[%clk 0:00:37]} 34. Ba3 {[%clk 0:00:12]}  hxg4 {[%clk 0:00:29]} 35. hxg4 {[%clk 0:00:13]}  Rxg4 {[%clk 0:00:29]} 36. Kxe2 {[%clk 0:00:13]}  Rg2+ {[%clk 0:00:30]} 37. Kf3 {[%clk 0:00:03]}  Rxc2 {[%clk 0:00:29]} 38. Be7 {[%clk 0:00:04]}  Rc3+ {[%clk 0:00:26]} 39. Kf2 {[%clk 0:00:03]}  Rc2+ {[%clk 0:00:24]} 40. Kf3 {[%clk 0:00:03]}  c5 {[%clk 0:00:24]} 41. Kg3 {[%clk 0:00:02]}  Ne3 {[%clk 0:00:16]} 42. Kf3 {[%clk 0:00:02]}  Nxf5 {[%clk 0:00:16]} 43. Rg4+ {[%clk 0:00:03]}  Kh6 {[%clk 0:00:12]} 44. Bxf6 {[%clk 0:00:04]}  Rxa2 {[%clk 0:00:12]} 45. Ke4 {[%clk 0:00:04]}  Rf2 {[%clk 0:00:11]} 46. Ke5 {[%clk 0:00:02]}  Nd4 {[%clk 0:00:11]} 47. Rg8 {[%clk 0:00:01]}  Rf5+ {[%clk 0:00:11]} 0-1


[Site "https://www.chess.com"]

[Event "Titled Tuesday Blitz February 07 Early 2023"]
[White "Jones, Gawain C B"]
[Black "Sattarov, Bobir"]
[WhiteFideId "409561"]
[BlackFideId "14203081"]
[WhiteElo "2618"]
[BlackElo "2366"]
[Result "1-0"]
[Round "06"]
[TimeControl "180+2"]
[Date "2023.02.07"]
[WhiteClock "0:00:06"]
[BlackClock "0:00:01"]

1. Nf3 {[%clk 0:02:54]}  Nf6 {[%clk 0:02:59]} 2. b3 {[%clk 0:02:51]}  c5 {[%clk 0:02:58]} 3. Bb2 {[%clk 0:02:52]}  Nc6 {[%clk 0:02:58]} 4. e3 {[%clk 0:02:51]}  e6 {[%clk 0:02:52]} 5. g3 {[%clk 0:02:51]}  b6 {[%clk 0:02:51]} 6. Bg2 {[%clk 0:02:51]}  Bb7 {[%clk 0:02:52]} 7. c4 {[%clk 0:02:51]}  d5 {[%clk 0:02:46]} 8. cxd5 {[%clk 0:02:49]}  exd5 {[%clk 0:02:32]} 9. d4 {[%clk 0:02:45]}  cxd4 {[%clk 0:02:27]} 10. Nxd4 {[%clk 0:02:44]}  Bb4+ {[%clk 0:02:27]} 11. Bc3 {[%clk 0:02:44]}  Bxc3+ {[%clk 0:02:16]} 12. Nxc3 {[%clk 0:02:45]}  Rc8 {[%clk 0:02:03]} 13. Nxc6 {[%clk 0:02:38]}  Rxc6 {[%clk 0:02:03]} 14. Ne2 {[%clk 0:02:29]}  O-O {[%clk 0:01:58]} 15. Nd4 {[%clk 0:02:27]}  Rc8 {[%clk 0:01:51]} 16. O-O {[%clk 0:02:26]}  Ne4 {[%clk 0:01:45]} 17. Rc1 {[%clk 0:02:15]}  Qf6 {[%clk 0:01:34]} 18. Rc2 {[%clk 0:01:49]}  Rc5 {[%clk 0:01:21]} 19. b4 {[%clk 0:01:41]}  Rxc2 {[%clk 0:01:19]} 20. Qxc2 {[%clk 0:01:41]}  Rc8 {[%clk 0:01:19]} 21. Qb2 {[%clk 0:01:34]}  h5 {[%clk 0:01:16]} 22. h4 {[%clk 0:01:27]}  Rc4 {[%clk 0:01:09]} 23. Bxe4 {[%clk 0:01:20]}  dxe4 {[%clk 0:01:09]} 24. Rc1 {[%clk 0:01:13]}  Bd5 {[%clk 0:01:01]} 25. Rxc4 {[%clk 0:01:10]}  Bxc4 {[%clk 0:01:02]} 26. Qc2 {[%clk 0:01:11]}  Bd3 {[%clk 0:01:02]} 27. Qc7 {[%clk 0:01:04]}  a6 {[%clk 0:00:46]} 28. a4 {[%clk 0:01:03]}  b5 {[%clk 0:00:41]} 29. a5 {[%clk 0:01:00]}  Kh7 {[%clk 0:00:40]} 30. Qb6 {[%clk 0:00:33]}  Qe7 {[%clk 0:00:23]} 31. Qc5 {[%clk 0:00:33]}  Qd7 {[%clk 0:00:14]} 32. Qxh5+ {[%clk 0:00:31]}  Kg8 {[%clk 0:00:14]} 33. Qf5 {[%clk 0:00:24]}  Qc7 {[%clk 0:00:12]} 34. Qc5 {[%clk 0:00:21]}  Qd7 {[%clk 0:00:10]} 35. Kg2 {[%clk 0:00:18]}  Qg4 {[%clk 0:00:08]} 36. Qc6 {[%clk 0:00:14]}  Qd1 {[%clk 0:00:04]} 37. Qc8+ {[%clk 0:00:08]}  Kh7 {[%clk 0:00:04]} 38. Qf5+ {[%clk 0:00:08]}  Kg8 {[%clk 0:00:05]} 39. Kh2 {[%clk 0:00:07]}  Qf1 {[%clk 0:00:04]} 40. h5 {[%clk 0:00:06]}  Qe1 {[%clk 0:00:04]} 41. Nc6 {[%clk 0:00:05]}  Be2 {[%clk 0:00:02]} 42. Ne7+ {[%clk 0:00:04]}  Kf8 {[%clk 0:00:02]} 43. Ng6+ {[%clk 0:00:04]}  Kg8 {[%clk 0:00:01]} 44. Qc8+ {[%clk 0:00:05]}  Kh7 {[%clk 0:00:01]} 45. Qh8# {[%clk 0:00:06]} 1-0


[Site "https://www.chess.com"]

[Event "Titled Tuesday Blitz February 07 Early 2023"]
[White "Zhigalko, Sergei"]
[Black "Shipov, Sergei"]
[WhiteFideId "13502956"]
[BlackFideId "4113624"]
[WhiteElo "2572"]
[BlackElo "2541"]
[Result "1-0"]
[Round "06"]
[TimeControl "180+2"]
[Date "2023.02.07"]
[WhiteClock "0:00:07"]
[BlackClock "0:00:02"]

1. e4 {[%clk 0:03:00]}  e6 {[%clk 0:03:00]} 2. d4 {[%clk 0:03:00]}  d5 {[%clk 0:03:00]} 3. Nd2 {[%clk 0:02:58]}  Be7 {[%clk 0:02:59]} 4. Ngf3 {[%clk 0:02:58]}  Nf6 {[%clk 0:02:58]} 5. Bd3 {[%clk 0:02:57]}  c5 {[%clk 0:02:58]} 6. exd5 {[%clk 0:02:43]}  Qxd5 {[%clk 0:02:57]} 7. O-O {[%clk 0:02:41]}  cxd4 {[%clk 0:02:47]} 8. Re1 {[%clk 0:02:36]}  Nc6 {[%clk 0:02:45]} 9. Qe2 {[%clk 0:02:30]}  O-O {[%clk 0:02:40]} 10. Nb3 {[%clk 0:02:07]}  Rd8 {[%clk 0:02:35]} 11. Bf4 {[%clk 0:02:02]}  b6 {[%clk 0:02:20]} 12. Rad1 {[%clk 0:02:02]}  Bb7 {[%clk 0:02:20]} 13. c3 {[%clk 0:01:51]}  h6 {[%clk 0:01:59]} 14. Bb1 {[%clk 0:01:50]}  Qh5 {[%clk 0:01:39]} 15. Nbxd4 {[%clk 0:01:32]}  Nxd4 {[%clk 0:01:37]} 16. Nxd4 {[%clk 0:01:32]}  Qxe2 {[%clk 0:01:36]} 17. Nxe2 {[%clk 0:01:20]}  b5 {[%clk 0:01:24]} 18. Nd4 {[%clk 0:00:50]}  a6 {[%clk 0:01:23]} 19. h3 {[%clk 0:00:38]}  Nd5 {[%clk 0:01:17]} 20. Be5 {[%clk 0:00:35]}  Rac8 {[%clk 0:01:11]} 21. Be4 {[%clk 0:00:32]}  b4 {[%clk 0:01:02]} 22. cxb4 {[%clk 0:00:19]}  Bxb4 {[%clk 0:01:02]} 23. Rf1 {[%clk 0:00:15]}  Ba8 {[%clk 0:00:52]} 24. a3 {[%clk 0:00:13]}  Bc5 {[%clk 0:00:45]} 25. Nb3 {[%clk 0:00:09]}  Bb6 {[%clk 0:00:43]} 26. Rc1 {[%clk 0:00:07]}  f6 {[%clk 0:00:39]} 27. Rxc8 {[%clk 0:00:04]}  Rxc8 {[%clk 0:00:36]} 28. Bd4 {[%clk 0:00:04]}  Bxd4 {[%clk 0:00:28]} 29. Nxd4 {[%clk 0:00:05]}  Kf7 {[%clk 0:00:23]} 30. Re1 {[%clk 0:00:04]}  Nc7 {[%clk 0:00:09]} 31. Bxa8 {[%clk 0:00:02]}  Rxa8 {[%clk 0:00:09]} 32. Rc1 {[%clk 0:00:02]}  Nb5 {[%clk 0:00:09]} 33. Nxb5 {[%clk 0:00:02]}  axb5 {[%clk 0:00:10]} 34. Rc7+ {[%clk 0:00:02]}  Kg6 {[%clk 0:00:10]} 35. Rb7 {[%clk 0:00:03]}  Ra5 {[%clk 0:00:08]} 36. g3 {[%clk 0:00:03]}  h5 {[%clk 0:00:08]} 37. h4 {[%clk 0:00:04]}  e5 {[%clk 0:00:08]} 38. Kg2 {[%clk 0:00:04]}  Kh6 {[%clk 0:00:07]} 39. Kf3 {[%clk 0:00:04]}  g5 {[%clk 0:00:08]} 40. hxg5+ {[%clk 0:00:03]}  Kxg5 {[%clk 0:00:08]} 41. Rb6 {[%clk 0:00:03]}  Kf5 {[%clk 0:00:08]} 42. Ke3 {[%clk 0:00:03]}  Kg5 {[%clk 0:00:07]} 43. f3 {[%clk 0:00:03]}  Kf5 {[%clk 0:00:06]} 44. Kd3 {[%clk 0:00:03]}  Kg5 {[%clk 0:00:05]} 45. Kc3 {[%clk 0:00:03]}  f5 {[%clk 0:00:05]} 46. Kb4 {[%clk 0:00:02]}  Ra4+ {[%clk 0:00:06]} 47. Kc5 {[%clk 0:00:03]}  Rd4 {[%clk 0:00:07]} 48. Rxb5 {[%clk 0:00:02]}  Rd3 {[%clk 0:00:06]} 49. a4 {[%clk 0:00:02]}  Rxf3 {[%clk 0:00:05]} 50. a5 {[%clk 0:00:03]}  Rxg3 {[%clk 0:00:04]} 51. a6 {[%clk 0:00:03]}  Rg1 {[%clk 0:00:04]} 52. Kb6 {[%clk 0:00:04]}  h4 {[%clk 0:00:03]} 53. a7 {[%clk 0:00:04]}  Ra1 {[%clk 0:00:02]} 54. Ra5 {[%clk 0:00:04]}  Rxa5 {[%clk 0:00:02]} 55. Kxa5 {[%clk 0:00:05]}  e4 {[%clk 0:00:03]} 56. a8=Q {[%clk 0:00:06]}  h3 {[%clk 0:00:03]} 57. Qg8+ {[%clk 0:00:05]}  Kf4 {[%clk 0:00:04]} 58. Qg1 {[%clk 0:00:06]}  e3 {[%clk 0:00:03]} 59. b4 {[%clk 0:00:05]}  Kf3 {[%clk 0:00:02]} 60. Qf1+ {[%clk 0:00:05]}  Kg3 {[%clk 0:00:02]} 61. Qg1+ {[%clk 0:00:05]}  Kf3 {[%clk 0:00:02]} 62. b5 {[%clk 0:00:05]}  e2 {[%clk 0:00:02]} 63. b6 {[%clk 0:00:05]}  h2 {[%clk 0:00:02]} 64. Qh1+ {[%clk 0:00:06]}  Ke3 {[%clk 0:00:01]} 65. b7 {[%clk 0:00:06]}  f4 {[%clk 0:00:01]} 66. b8=Q {[%clk 0:00:06]}  f3 {[%clk 0:00:02]} 67. Qe5+ {[%clk 0:00:06]}  Kd2 {[%clk 0:00:02]} 68. Qd4+ {[%clk 0:00:06]}  Kc2 {[%clk 0:00:02]} 69. Qf2 {[%clk 0:00:07]} 1-0


[Site "https://www.chess.com"]